Cogmind - Beta 17 @@@ ROGUE MODE // 2026.08.17 @ 13:59:37 Player: Marc Result: Self-destructed Performance ------------- Evolutions (2) 1000 Regions Visited (3) 600 Robots Destroyed (32) 160 Value Destroyed (920) 920 Prototype IDs (1) 20 Alien Tech Used (0) 0 Bonus (0) 0 TOTAL SCORE: 2700 Bonus ------- None Cogmind --------- Core Integrity 352/550 Matter 235/300 Energy 100/100 System Corruption 4% Temperature Cool (0) Movement Core (350) Ox6 Location -8/Materials Parts ------- > --- POWER (1) -------- (None) > --- PROPULSION (4) --- (None) > --- UTILITY (4) ------ Large Storage Unit Advanced Visual Processing Unit Sensor Array > --- WEAPON (2) ------- (None) > --- INVENTORY (15) --- Ion Engine Light Nuclear Core Light Nuclear Core Aluminum Leg Aluminum Leg Heat Sink Structural Scanner Light Armor Plating Tractor Beam Beam Rifle Grenade Launcher Peak State ------------ > --- POWER ------------ Improved Ion Engine > --- PROPULSION ------- Aluminum Leg Aluminum Leg Aluminum Leg Aluminum Leg > --- UTILITY ---------- Large Storage Unit Visual Processing Unit Sensor Array > --- WEAPON ----------- Improved EM Shotgun Improved EM Shotgun > --- INVENTORY -------- Ion Engine Light Nuclear Core Aluminum Leg Aluminum Leg Aluminum Leg Aluminum Leg Heat Sink Sensor Array Sensor Array Light Armor Plating Tractor Beam Improved EM Shotgun Beam Rifle Grenade Launcher Grenade Launcher [Rating: 18] Favorites ----------- Power Improved Ion Engine Engine Improved Ion Engine Propulsion Aluminum Leg Leg Aluminum Leg Utility Large Storage Unit Device Sensor Array Storage Large Storage Unit Processor Visual Processing Unit Protection Light Armor Plating Weapon Light Assault Rifle Energy Gun Medium Laser Ballistic Gun Light Assault Rifle Launcher Grenade Launcher Build | -11 -10 -9 -8 ------- Run | Yrd Mat Mat Mat Slots Evolved 4 | . . 2 2 Power . | . . . . Propulsion 2 | . . 1 1 Utility 2 | . . 1 1 Weapon . | . . . . Parts Attached 25 | . 4 9 12 Power 1 | . . 1 . Engine 1 | . . 1 . Core . | . . . . Reactor . | . . . . Propulsion 10 | . 2 4 4 Treads . | . . . . Leg 10 | . 2 4 4 Wheel . | . . . . Hover . | . . . . Flight . | . . . . Utility 8 | . 2 2 4 Device 4 | . 1 . 3 Storage 1 | . 1 . . Processor 2 | . . 1 1 Hackware . | . . . . Protection 1 | . . 1 . Artifact . | . . . . Weapon 6 | . . 2 4 Energy Gun 4 | . . 1 3 Energy Cannon . | . . . . Ballistic Gun 1 | . . 1 . Ballistic Cannon . | . . . . Launcher 1 | . . . 1 Special Weapon . | . . . . Impact Weapon . | . . . . Slashing Weapon . | . . . . Piercing Weapon . | . . . . Special Melee Weapon . | . . . . Unidentified Prototypes 1 | . . . 1 Corrupted Parts 1 | . . . 1 System Corruption 4 | . . . 4 Parts Lost 11 | . . . 11 Power . | . . . . Propulsion 4 | . . . 4 Utility 3 | . . . 3 Weapon 4 | . . . 4 Highest Loss Streak 5 | . . . 5 To Critical Strikes . | . . . . Average Backups 12 | . 9 12 13 Power 2 | . 1 2 2 Propulsion 2 | . 3 2 2 Utility 4 | . 2 4 4 Weapon 3 | . 2 3 3 Tool/Special . | . . . . Unused Backups 19 | . 8 2 9 Power 5 | . 1 2 2 Propulsion 5 | . 4 . 1 Utility 4 | . 1 . 3 Weapon 5 | . 2 . 3 Tool/Special . | . . . . Average Slot Usage (%) 90 | . 97 91 85 Engine 10 | . 14 11 8 Leg 31 | . 28 33 30 Device 11 | . 11 11 10 Storage 10 | . 14 11 9 Processor 4 | . . 2 9 Energy Gun 13 | . 14 11 17 Ballistic Gun 8 | . 14 11 . Peak Build Rating 18 | . 8 13 18 Average Rating 11 | . 7 10 16 On Entrance 8 | 6 6 8 13 Avg Prop Armor Cover (%) . | . . . . Naked Turns . | . . . . Heaviest Build 35 | 13 29 32 35 Greatest Support 40 | 20 20 30 40 Greatest Overweight (x) 1 | . 1 1 1 Average Overweight (x) . | . . . . Largest Inventory Capacity 15 | . 15 15 15 Average Capacity 14 | . 14 15 15 Most Carried 15 | . 13 15 15 Average Carried 12 | . 9 12 13 Final Capacity 15 | 8 15 15 15 Final Carried 15 | 6 11 15 11 Class Distribution -------------------- 49% | Mutant 44% | Scavenger-Mutant 5% | Scavenger-Skirmisher Dominant Class ---------------- Mutant | -10/Materials Mutant | -9/Materials Scavenger-Mutant | -8/Materials Resources | -11 -10 -9 -8 ----------- Run | Yrd Mat Mat Mat Matter Collected 497 | 200 57 109 131 Remotely . | . . . . Salvage Created 1105 | . 251 337 517 Parts 73 | . 10 28 35 Haulers Intercepted . | . . . . Recyclers Shooed 1 | . 1 . . Parts Field Recycled . | . . . . Retrieved Matter . | . . . . Parts Self-Destructed . | . . . . Prevented . | . . . . Parts Restored . | . . . . Kills | -11 -10 -9 -8 ------- Run | Yrd Mat Mat Mat Combat Hostiles Destroyed 28 | . 5 8 15 Guns 20 | . 5 8 7 AOE 7 | . . . 7 Classes Destroyed 7 | . 2 3 2 Recycler 1 | . 1 . . Operator 1 | . . . 1 Watcher 2 | . . 2 . Swarmer 10 | . . 3 7 Grunt 12 | . 5 2 5 Sentry 5 | . . 3 2 Hunter 1 | . . . 1 Best Kill Streak 7 | . 5 3 7 Combat Bots Only 7 | . 2 3 7 Max Kills in Single Turn 3 | . 1 1 3 Gunslinging . | . . . . Exploded 3 | . . . 3 Melee . | . . . . Uniques/NPCs Destroyed . | . . . . Combat | -11 -10 -9 -8 -------- Run | Yrd Mat Mat Mat Hostile Shots Fired 145 | . 22 34 89 Missed 34 | . 5 10 19 Hits 111 | . 17 24 70 Melee 3 | . . . 3 Projectile 108 | . 17 24 67 Critical Strikes 3 | . . . 3 Damage Taken 1580 | . 216 282 1082 Core 263 | . 37 28 198 Absorbed by Shields . | . . . . Core Remaining (%) 92 | 100 85 93 . Volleys Fired 68 | . 17 20 31 Largest 2 | . 2 2 2 Hottest 90 | . 70 76 90 Shots Fired 128 | . 34 40 54 Gun 123 | . 34 40 49 Cannon . | . . . . Launcher 5 | . . . 5 Special . | . . . . Kinetic 37 | . 17 20 . Thermal 37 | . 17 20 . Explosive 5 | . . . 5 Electromagnetic 49 | . . . 49 Robot Hit Streak 27 | . 6 27 9 Robot Miss Streak 4 | . 1 2 4 Penetration Max . | . . . . Secondary Targets 2 | . 1 1 . Max Gunslinging Chain 1 | . 1 1 . Shots Hit Robots 99 | . 24 30 45 Core Hits 62 | . 14 16 32 Critical Kills . | . . . . Critical Parts Destroyed . | . . . . Critical Strikes 2 | . 2 . . Burn 2 | . 2 . . Melee Attacks . | . . . . Impact . | . . . . Slashing . | . . . . Piercing . | . . . . Sneak Attacks . | . . . . Combat Hostiles . | . . . . Follow-up Attacks . | . . . . Damage Inflicted 1629 | . 275 332 1022 Guns 1263 | . 275 332 656 Cannons . | . . . . Explosions 366 | . . . 366 Melee . | . . . . Ramming . | . . . . Kinetic 214 | . 99 115 . Thermal 393 | . 176 217 . Explosive 366 | . . . 366 Electromagnetic 656 | . . . 656 Impact . | . . . . Slashing . | . . . . Piercing . | . . . . Highest Corruption 4 | . . . 4 Average Corruption 4 | . . . 4 Corruption Purged . | . . . . Corruption Blocked . | . . . . Effects 8 | . . . 8 Message Errors 1 | . . . 1 Matter Fused 1 | . . . 1 Energy Discharges 3 | . . . 3 Parts Rejected 1 | . . . 1 Data Loss (minor) 2 | . . . 2 Overload Shots . | . . . . Overflow Damage 2 | . . . 2 Projectiles . | . . . . Explosions 2 | . . . 2 Melee . | . . . . Knockbacks . | . . . . Impact . | . . . . Kinetic . | . . . . Secondary . | . . . . Self-Inflicted Damage 24 | . . . 24 Shots 2 | . . . 2 Rammed . | . . . . Targets Rammed . | . . . . Kicked . | . . . . Crushed . | . . . . Highest Temperature 270 | . 222 74 270 Average Temperature 61 | . 77 26 72 Received Heat Transfer 504 | . 120 69 315 Siege Activations . | . . . . Martial Activations . | . . . . Shielding Activations . | . . . . Robots Disrupted 1 | . . . 1 Combat Hostiles 1 | . . . 1 Robots Corrupted 1 | . . . 1 Combat Hostiles 1 | . . . 1 Parts Fried 3 | . . . 3 Impact Corruptions . | . . . . Robots Melted . | . . . . Combat Hostiles . | . . . . Parts Melted 7 | . 4 3 . Heat Transferred 1295 | . 666 629 . Parts Sabotaged . | . . . . Parts Stolen . | . . . . Parts Stripped . | . . . . Power Chain Reactions . | . . . . Alert | -11 -10 -9 -8 ------- Run | Yrd Mat Mat Mat Maximum Alert Level . | . . . . Low Security (%) 100 | . 100 100 100 Level 1 . | . . . . Level 2 . | . . . . Level 3 . | . . . . Level 4 . | . . . . Level 5 . | . . . . High Security . | . . . . Max Security . | . . . . Peak Influence 139 | . 85 80 139 Initial 10 | . . 10 . Average 25 | . 29 21 33 Influence Increases 785 | . 125 235 425 Destroy 0b10 Robot/C 560 | . 100 160 300 Destroy 0b10 Robot/NC 20 | . 5 10 5 Destroy Leader 144 | . 20 44 80 Successful Hack 29 | . . 21 8 Destroy Structure 17 | . . . 17 Lose Combat Pursuer 15 | . . . 15 Influence Decreases 666 | . 100 260 306 Entered New Map 15 | . . 15 . Time Decay 541 | . 100 245 196 Lost Part 110 | . . . 110 Squads Dispatched 5 | . 1 . 4 Investigation 1 | . 1 . . Extermination . | . . . . Reinforcement 1 | . . . 1 Assault . | . . . . Garrison 3 | . . . 3 Intercept . | . . . . Searches Triggered . | . . . . Construction Impeded . | . . . . Haulers Reinforced . | . . . . Active Scanning Responses . | . . . . Cargo Convoy Interrupts . | . . . . Stealth | -11 -10 -9 -8 --------- Run | Yrd Mat Mat Mat Distress Signals 2 | . 1 1 . Communications Jammed . | . . . . Distress Signals . | . . . . Times Spotted 45 | . 7 15 23 Peak Tracking Total 9 | . 3 4 9 Tactical Retreats 1 | . . . 1 Traps | -11 -10 -9 -8 ------- Run | Yrd Mat Mat Mat Traps Triggered 1 | . 1 . . Indirectly . | . . . . Trap Hack Attempts . | . . . . Triggered . | . . . . Disarmed . | . . . . Reprogrammed . | . . . . Reused . | . . . . Traps Extracted . | . . . . Installed . | . . . . Triggered . | . . . . Machines | -11 -10 -9 -8 ---------- Run | Yrd Mat Mat Mat Machines Disabled . | . . . . Max in Single Turn . | . . . . Machines Repaired . | . . . . Machines Dismantled . | . . . . Machines Sabotaged . | . . . . Overloaded Fab Kills . | . . . . Hacking | -11 -10 -9 -8 --------- Run | Yrd Mat Mat Mat Machines Accessed 6 | . . 4 2 Terminals 5 | . . 3 2 Fabricators . | . . . . Repair Stations . | . . . . Recycling Units . | . . . . Scanalyzers 1 | . . 1 . Garrison Access . | . . . . Total Hacks 12 | . . 8 4 Successful 8 | . . 6 2 Failed 4 | . . 2 2 Catastrophic . | . . . . Database Lockouts . | . . . . Manual 8 | . . 4 4 Terminals 9 | . . 5 4 Fabricators . | . . . . Repair Stations . | . . . . Recycling Units . | . . . . Scanalyzers 3 | . . 3 . Garrison Access . | . . . . Terminal Hacks . | . . . . Fabricator Hacks . | . . . . Repair Station Hacks . | . . . . Recycling Unit Hacks . | . . . . Scanalyzer 2 | . . 2 . Retrieve Study 2 | . . 2 . Garrison Access Hacks . | . . . . Unauthorized Hacks 6 | . . 4 2 Terminals 6 | . . 4 2 Track 2 | . . 1 1 Botnet 4 | . . 3 1 Fabricators . | . . . . Repair Stations . | . . . . Recycling Units . | . . . . Scanalyzers . | . . . . Garrison Access . | . . . . Data Cores Recovered . | . . . . Used . | . . . . Hacking Detections 2 | . . 1 1 Full Trace Events . | . . . . Feedback Events . | . . . . Feedback Blocked . | . . . . Robot Schematics Acquired . | . . . . Robots Built . | . . . . Authchips . | . . . . Time . | . . . . Total Robot Build Rating . | . . . . Part Schematics Acquired . | . . . . Parts Built . | . . . . Authchips . | . . . . Time . | . . . . Total Part Build Rating . | . . . . Part Studies Acquired 2 | . . 2 . Parts Repaired . | . . . . Time . | . . . . Parts Recycled . | . . . . Recycled Matter . | . . . . Retrieved Matter . | . . . . Retrieved Components . | . . . . Parts Scanalyzed . | . . . . Part Schematics Acquired . | . . . . Parts Damaged . | . . . . Bothacking | -11 -10 -9 -8 ------------ Run | Yrd Mat Mat Mat Used RIF Installer . | . . . . Robots Hacked . | . . . . Non-combat . | . . . . Combat . | . . . . Robot Hacks Applied . | . . . . Relay Couplers Released . | . . . . Fabnet Peak Effective % . | . . . . Robots Rewired . | . . . . Allies Hacked . | . . . . Hacks Repelled . | . . . . Allies | -11 -10 -9 -8 -------- Run | Yrd Mat Mat Mat Total Allies . | . . . . Largest Group . | . . . . Highest-Rated Group . | . . . . Highest-Rated Ally . | . . . . Total Orders . | . . . . Ally Attacks . | . . . . Total Damage . | . . . . Kills . | . . . . Allies Corrupted . | . . . . Allies Melted . | . . . . Intel | -11 -10 -9 -8 ------- Run | Yrd Mat Mat Mat Active Infowar (turns) 2392 | . 307 1438 647 Optics 1019 | . . 372 647 Sensors 2295 | . 307 1438 550 Terrain 234 | . . . 234 Robot Analysis Total . | . . . . Derelict Logs Recovered . | . . . . Drone Launches . | . . . . Drone Recoveries . | . . . . Exploration | -11 -10 -9 -8 ------------- Run | Yrd Mat Mat Mat Turns Passed 2453 | . 368 1438 647 Spaces Moved 751 | 1 163 310 277 Core . | . . . . Treads . | . . . . Legs 751 | 1 163 310 277 Wheels . | . . . . Hover . | . . . . Flight . | . . . . Fastest Speed 105 | 120 120 120 105 Average Speed 151 | 120 176 151 136 Slowest Speed 190 | 120 190 190 175 Overloaded Moves . | . . . . Propulsion Burnouts . | . . . . Robots Hopped . | . . . . Potential Cave-ins . | . . . . Cave-ins Triggered . | . . . . Exploration Rate (%) 18 | 1 29 23 21 Regions Visited 3 Branch Regions . Pre-discovered Areas . | . . . . Known Exits Taken . | . . . . Unknown Exits Taken 3 | 1 1 1 . Scrap Searched . | . . . . Spaces Dug . | . . . . Terrain Destroyed 22 | . . . 22 Melee . | . . . . Projectile . | . . . . AOE 22 | . . . 22 Terrain Rammed . | . . . . Walls Destroyed . | . . . . Machines Disabled . | . . . . Actions | -11 -10 -9 -8 --------- Run | Yrd Mat Mat Mat Total 1949 | . 214 1242 493 Wait 1057 | . 15 890 152 Move 748 | . 162 309 277 Hop . | . . . . Pick Up 29 | . 11 9 9 Fast Attach 4 | . . 1 3 Attach 14 | . 2 2 10 Detach 2 | . . 1 1 Swap 12 | . 2 6 4 Drop 15 | . 5 4 6 Fire 68 | . 17 20 31 Melee . | . . . . Ram . | . . . . Kick . | . . . . Crush . | . . . . Escape Stasis . | . . . . Rewire . | . . . . Trap . | . . . . Miscellaneous . | . . . . Route ------- -11/Scrapyard -10/Materials -9/Materials -8/Materials History --------- Turn | Location | Event 1 | -11/Scrapyard | Discovered new exit (range 0) 1 | -11/Scrapyard | Entered Materials 315 | -10/Materials | Build established: Mutant 327 | -10/Materials | Discovered new exit (range 9) 369 | -10/Materials | Entered another Materials area 369 | -9/Materials | Evolved 2 slots: Propulsion x1, Utility x1 1513 | -9/Materials | Build established: Scavenger-Mutant 1743 | -9/Materials | Discovered new exit (range 8) 1807 | -9/Materials | Entered another Materials area 1807 | -8/Materials | Evolved 2 slots: Propulsion x1, Utility x1 1974 | -8/Materials | Garrison activated, responded to threat 2286 | -8/Materials | Lost 3 parts (1n1u1w) 2454 | -8/Materials | Self-destructed Last Messages --------------- 02262_ U-05 Engineer repairs door. 02262_ K-01 Serf collects debris. 02287_ Acquired Adv. Visual Processing Unit. 02289_ Discarded Visual Processing Unit. 02300_ System corrupted: Energy discharge (-71). 02324_ System corrupted: Component data lost. 02341_ System corrupted: Matter fused (-10). 02368_ R-06 Scavenger collects Corrupted Lgt. Treads. 02435_ S-10 Pest destroyed. 02435_ Destroyed Flight Unit. 02435_ S-10 Pest destroyed. 02444_ Terrain Scanner destroyed. 02445_ System corrupted: Imp. Ion Engine+ rejected. 02446_ S-10 Pest destroyed. 02450_ Aluminum Leg+ destroyed. 02450_ S-10 Pest destroyed. 02450_ Grenade Launcher destroyed. 02453_ Aluminum Leg+ destroyed. 02453_ Imp. EM Shotgun destroyed. 02454_ Aluminum Leg+ severed. Map ----- +----------------------------------------------------+ | ?????????????????????????????????????????????????? | | ?????????????????????????????????????????????????? | | ?????????????????????????????????????????????????? | | ?????????????????????????????????????????????????? | | ?????????????????????????????????????????????????? | | ?????????????????????????????????????????????????? | | ?????????????????????????????????????????????????? | | ?????????????????????????????????????????????????? | | ?????????????????????????????????????????????????? | | ?????????????????????????????????????????????????? | | ?????????????????????????????????????????????????? | | ????????????? ????????????????????????????????? | | ????????????? ????????????????????????????????? | | ?????????????"" ???????????????????????????????? | | ?????????? """ ########???????????????????????? | | ?????????? """ #??????????????????????? | | ????????? #??????????????????????? | | ????????? #????????????? ????????? | | ???????? #??????????????????????? | | ????????# #????????????????#?????? | | ????????#*** """###???????????######?##? | | ????????#*** / T" ##??????????# ?? ? | | ????????#*** %"""= ##?????????# ?? ? | | ????????# [ %= a????????" + ?? ? | | ??????????? * ##??????"???# #?? #? | | ????????????#####+## [ @ #???? ?????# #?# #? | | ????????????# [ =l #???? ?????# #?? #? | | ????????????# # ##?????????## ###+## | | ????????????# !| #######??????# # | | ????????????# !] #???#?## # """ | | ????????????# ! """ ? ######## # "R | | ???????????#Y """ # ? # """ | | ???????????## """ ################### # | | ????????????# ??????????????????## + | | ????????????#########???????#??????????## %###### | | ??????????????????????? ?????#????#####?# %#???? | | ??????????????????????????????????# ### #?? | | ????????????????????? ???????????## T # """ | | ??????????????#??????????????????## ### + """ | | ??????????????????????????????????## ##?# # """ | | ????????????????????????? ?????#???# ???# %#?? | | ???????????????????????????????????# ???# ###### | | ???????????????????????????????????# ???# #! | | ??????????????????????????????######+##?# +%"T" | | ??????????????????????????????# ?# %# | | ??????????????????????????????# # ###### | | ??????????????????????????????# # =###### | | ??????????????????????????????# + | | ??????????????????????????????# ! # ###### | | ??????????????????????????????# """" # ## # | +----------------------------------------------------+ Best States ------------- Heat Dissipation 31 Energy Generation 14 Energy Capacity 265 Matter Stores 300 Matter Capacity 300 Sight Range 20 Robot Scan Range 14 Terrain Scan Range 14 Terrain Scan Density 10 Evasion (%) 55 Item Schematics ----------------- None Robot Schematics ------------------ None Fabricated ------------ Nothing Repaired ---------- Nothing Studied --------- Aluminum Leg | -9/Materials | Hacked Imp. Ion Engine | -9/Materials | Hacked Alien Tech Used ----------------- None Achievements -------------- None Challenges ------------ None Game ------ Seed HackingWeldingBattery Manual? 0 Play Time 00:15:07 Cumulative 27.8 hours Start 2026.08.17 @ 13:43:17 End 2026.08.17 @ 13:59:37 Sessions 1 Manual Loads 0 Difficulty Rogue Special Mode None Game No. 91 Rogue 84 Adventurer 7 Explorer 0 Win Type - Total 0 Types 0/0/0/0/0/0/0/0/0/0 Lore% 29 Gallery% 34 Achievement% 28 Wizard Run 0 Options --------- Layout 0 ASCII 0 Keyboard 0 Movement Mouse Keybinds 0 Fullscreen 1 Font 18/SmallcapsGlow Map View 38x25 Zoom Use 98% Tactical HUD 1 Map Filters NONE Filters NONE Steam 1 RUN: 53ad8165-608e-43d6-93c6-f2992e1698d9